{"text_format":"1","workbook":"xlsx","n_sheets":7,"sheets":["Del 1-4, Projektplan","Del 5, Budget","Del 6, Bilaga Övning","Exempel verksamhetslogik","Om blanketten","MSBs sammanfattning","Koppling"],"not_rendered":{"charts":0,"images":5,"macros":1,"external_links":0,"defined_names":10,"comments":1,"pivot_tables":0},"unopened":[],"bounds":{"document_bytes":16777216,"sheet_cells":100000,"rows_first":2000,"rows_last":500,"rows_between":2000,"halvings":0,"cell_chars":16384,"cell_head_chars":4096},"cells_cut":0,"cells_raw":0,"read":"whole","date_system":"1900"}

{"sheet":"Del 1-4, Projektplan","index":0,"n_rows":367,"n_cols":10,"rows_kept":367,"cut":false,"hidden":false,"merged":[[137,1,137,9],[26,4,26,8],[33,4,33,8],[117,1,121,9],[332,3,332,9],[333,3,333,9],[334,3,334,9],[338,1,338,2],[337,1,337,2],[325,1,325,2],[326,3,326,9],[327,3,327,9],[329,3,329,9],[330,3,330,9],[291,1,293,9],[283,1,288,9],[182,1,182,5],[92,1,92,6],[123,1,134,9],[205,1,213,9],[163,1,179,9],[225,1,228,9],[315,5,315,9],[6,1,16,9],[335,3,335,9],[336,3,336,9],[337,3,337,9],[326,1,326,2],[327,1,327,2],[329,1,329,2],[330,1,330,2],[332,1,332,2],[333,1,333,2],[334,1,334,2],[335,1,335,2],[336,1,336,2],[216,1,222,9],[186,1,194,9],[240,1,245,9],[52,6,52,8],[83,1,90,9],[269,1,277,9],[325,3,325,9],[328,1,328,2],[328,3,328,9],[331,1,331,2],[331,3,331,9],[366,1,366,5],[21,1,23,9],[39,1,40,9],[25,4,25,8],[28,4,28,8],[29,4,29,8],[30,4,30,8],[31,4,31,8],[32,4,32,8],[36,1,37,9],[58,1,72,9],[97,1,100,9],[43,1,44,9],[341,1,346,9],[197,1,203,9],[280,1,282,9],[324,3,324,9],[146,1,150,9],[363,1,363,4],[103,1,103,9],[95,1,96,9],[47,6,47,8],[359,7,359,8],[350,3,350,6],[359,1,359,2],[357,3,357,6],[358,3,358,6],[359,3,359,6],[350,7,350,8],[351,7,351,8],[352,7,352,8],[354,1,354,2],[354,3,354,6],[354,7,354,8],[355,1,355,2],[355,3,355,6],[355,7,355,8],[358,7,358,8],[350,1,350,2],[351,3,351,6],[352,3,352,6],[356,7,356,8],[358,1,358,2],[356,1,356,2],[353,1,353,2],[353,3,353,6],[353,7,353,8],[294,1,299,9],[229,1,237,9],[246,1,254,9],[303,1,308,9],[314,1,314,2],[348,3,348,6],[349,3,349,6],[356,3,356,6],[352,1,352,2],[349,7,349,8],[338,3,338,9],[257,1,267,9],[48,6,48,8],[104,1,107,9],[46,2,46,5],[47,2,47,5],[48,2,48,5],[46,6,46,8],[52,2,52,5],[357,7,357,8],[111,1,114,9],[181,1,181,8],[76,1,76,4],[154,1,158,9],[79,1,80,9],[357,1,357,2],[53,2,53,5],[53,6,53,8],[54,2,54,5],[54,6,54,8],[318,1,322,9],[324,1,324,2],[351,1,351,2],[348,7,348,8],[348,1,348,2],[349,1,349,2]]}
[]
[null,null,null,null,null,"Projektplan för myndigheter"]
[null,null,null,null,null,{"$f":"\"Ansökan om medel från anslag 2:4 Krisberedskap \"&Koppling!B3","v":"Ansökan om medel från anslag 2:4 Krisberedskap 2023"}]
[]
[null,null,null,null,null,{"$f":"\"Skicka in ansökan senast den 30 september \"&Koppling!B1&\" till anslag2-4@msb.se\"","v":"Skicka in ansökan senast den 30 september 2022 till anslag2-4@msb.se"}]
[]
[null,"Fyll i blanketten så här:\n- Fyll i de ljusgrå cellerna. Skriv direkt i textfältet eller skriv först i Word och dubbelklicka på rutan för att klistra  in texten.\n- Om er beskrivning av en aktivitet blir längre än den mängd text som kan visas i rutan kan ni förstora textrutan genom att dra i skiljelinjen mellan radnumren till vänster \n- För att skapa fler rader, högerklicka på ett radnummer i vänstermarginalen och infoga nya rader.\n- Tryck på (alt+enter) för att göra en radbrytning i ett textfält. \n- Vissa frågor har rullistor. För att se rullistan klicka på svarsrutan och bläddra genom att klicka på pilen till höger i rutan.\n- Tänk på att inte lämna några säkerhetsskyddsklassificerade eller sekretessbelagda uppgifter i blanketten utan att göra en informationsklassning."]
[]
[]
[]
[]
[]
[]
[]
[]
[]
[]
[]
[null,"1. PROJEKTÖVERSIKT"]
[]
[null,"1.1 Kontaktuppgifter"]
[null,"Kontaktperson är den som kan svara på frågor om projektansökan. Behörig tjänsteperson är den som intygar uppgifterna i ansökan på sökande myndighets uppdrag och skriver under ansökan (se separat blankett)."]
[]
[]
[]
[null,null,null,"Sökande myndighet:"]
[null,null,null,"Postadress:"]
[]
[null,null,null,"Kontaktpersonens namn:"]
[null,null,null,"Telefonnummer till kontaktperson:"]
[null,null,null,"E-post till kontaktperson:"]
[null,null,null,"Namn på behörig tjänsteperson:"]
[null,null,null,"Titel på behörig tjänsteperson:"]
[null,null,null,"Telefonnummer till behörig:"]
[]
[null,"1.2. Projekttitel"]
[null,"Ge projektet ett kort namn som kan användas för att identifiera det enskilda projektet. Titeln ska inte omfatta några sekretessbelagda eller säkerhetskyddsklassificerade uppgifter."]
[]
[null,"Högst 120 tecken."]
[null,"Utveckling av arbetet med frivilliga försvarsorganisationer"]
[]
[]
[null,"1.3 Tidplan"]
[null,{"$f":"\"Ansökan får omfatta kostnader som uppstår mellan den 1 januari \"&Koppling!B3&\" och 31 december \"&Koppling!B4&\". Besked om beviljade projekt ges tidigast i slutet av januari \"&Koppling!B3&\".\"","v":"Ansökan får omfatta kostnader som uppstår mellan den 1 januari 2023 och 31 december 2024. Besked om beviljade projekt ges tidigast i slutet av januari 2023."}]
[]
[]
[null,null,"Startdatum (åååå-mm-dd)"]
[null,null,"Slutdatum (åååå-mm-dd)"]
[null,null,"Antal kalenderår som projektet ska pågå"]
[]
[null,"1.4 Summa sökt ersättning  (visas automatiskt när ni fyllt i budgetfliken)"]
[null,"OBS! Högsta ersättning är 1 miljon kr per år"]
[null,null,{"$f":"\"Sökt ersättning \"&Koppling!B3","v":"Sökt ersättning 2023"},null,null,null,{"$f":"'Del 5, Budget'!E48","v":0}]
[null,null,{"$f":"\"Sökt ersättning \"&Koppling!B4","v":"Sökt ersättning 2024"},null,null,null,{"$f":"'Del 5, Budget'!G48","v":0}]
[null,null,{"$f":"\"Summa ersättning hela perioden \"&Koppling!B3&\"-\"&Koppling!B4","v":"Summa ersättning hela perioden 2023-2024"},null,null,null,{"$f":"'Del 5, Budget'!K48","v":0}]
[]
[null,"1.5 Sammanfattning av projektet"]
[null,"Ge en översiktlig bild av syftet med projektet, vad som ska genomföras och vad verksamheten ska uppnå."]
[]
[]
[]
[]
[]
[]
[]
[]
[]
[]
[]
[]
[]
[]
[]
[]
[null,"1.6 Inom vilket område ska projektet bidra till stärkt förmåga?"]
[]
[null,"(Klicka här för att välja i rullistan)"]
[]
[null,"Ev. kommentar:"]
[]
[]
[]
[null,"1.7 Vilket behov ligger till grund för projektet?"]
[null,"Regeringen anser att det frivilliga engagemanget är viktigt för den samlade förmågan i totalförsvaret. De frivilliga försvarsorganisationerna har en särskild roll inom totalförsvaret och är en viktig del av personalförsörjningen i det civila försvaret. MSB ser tillgången till rätt kompetens som avgörande för det civila försvarets möjlighet att fullgöra sina uppgifter och bedömer att behovet av personalförstärkning kommer att öka kraftigt. Utöver de nya roller och områden Försvarsberedningen pekar ut för de frivilliga försvarsorganisationerna inom det civila försvaret, ser MSB ytterligare områden att utveckla. Exempel på sådana områden är skyddsvakter, skydd och omsorg av barn och unga samt kulturarv. En ändamålsenlig och välfungerande utveckling av frivilliga förstärkningsresurser utifrån behoven hos offentliga aktörer inom civilt försvar förutsätter tidig dialog, långsiktiga partnerskap och ett utvecklat frivilligperspektiv i beredskapsplaneringen. För att möjliggöra detta stödjer MSB myndigheterna genom en riktad finansiell satsning på frivilligsamverkan inom ramen för anslag 2:4 för perioden 2022-2023. Denna förberedda projektansökan är ett sätt att underlätta och stimulera att fler myndigheter tar utvecklingskliv på området.\n"]
[]
[]
[]
[]
[]
[]
[]
[]
[null,"Hantering av resurser",null,null,null,null,null,{"$f":"IF(B93=\"2.1.3 Hantering av resurser\",\"Söker ni projket som kopplar till frivilliga försvarsorganisationer eller näringliv, använd i första hand de förifyllda mallarna.\",\"\")","v":""}]
[]
[null,"1.7.1 Beskriv det behov som ligger till grund för projektet (fylls endast i om Projektet inte kopplar till inriktningen)"]
[null,"Enligt anslagets finansieringsprinciper ska projektet bygga på en behovsanalys. Förklara hur det aktuella projektet bidrar till att åtgärda det behov ni ser av den här insatsen."]
[]
[]
[]
[]
[]
[]
[null,"1.7.2 Var finns behovet dokumenterat?   (fylls endast i om Projektet inte kopplar till inriktningen)"]
[null,"Skriv så detaljerat som möjligt, exempelvis ange dokumentnamn, diarienummer, år och sidhänvisning."]
[]
[]
[]
[]
[]
[]
[null,"2. PROJEKTETS FÖRUTSÄTTNINGAR"]
[null,"Utgångspunkten för att söka anslagsmedel är Inriktning för projektmedel till myndigheter 2022-2023 – Anslag 2:4 Krisberedskap (MSB 2021-06286). Inom området samverkan med frivilliga försvarsorganisationer vill MSB särskilt se att mer utvecklingsarbete kommer igång och på ett enhetligt sätt. Därför är detta en riktad satsning 2022-2023 och MSB erbjuder denna delvis färdigformulerade projektansökan. MSB har formulerat mål i olika steg som sedan operationaliseras av respektive myndighet för att passa in i myndighetens arbete, ambition och i förhållande till hur långt man har kommit inom området. \n\nMSB ser att ett sådant arbete delvis är eget ansvar, särskilt om det görs för den egna organisationen. Beroende på slutligt utformat projektupplägg, kan MSN finansiera hela eller delar av insatsen. Huvudsyftet är att initiera arbetet med att involvera frivilliga försvarsorganisationer i totalförsvarsplaneringen, alternativt komplettera och bredda det arbete som myndigheten redan bedriver. \n\nMSB kommer att erbjuda nätverksträffar för projektledare, som syftar till att alla som bedriver liknande projekt träffas och delar erfarenheter. "]
[]
[]
[]
[]
[null,"2.1 Motivera varför projektet ska finansieras med anslag 2:4 och inte i ordinarie verksamhet"]
[null,"Enligt ansvarsprincipen har en aktör med ansvar för en viss verksamhet under normala förhållanden även ansvaret i en kris. I linje med detta ska åtgärder för att upprätthålla en tillräcklig förmåga vid allvarliga händelser och kriser finansieras inom ramen för myndighetens ordinarie verksamhet. Myndigheten måste därför motivera varför det sökta projektet ska finansieras med 2:4-medel och inte med ordinarie medel. Se Finansieringsprinciper MSB 2019-09098."]
[]
[]
[]
[]
[null,"Motivering:"]
[null,"Projektet ska identifiera myndighetens behov av stöd från frivilliga försvarsorganisationer i beredskapsplanering, identifiera och vidta åtgärder för att möta behoven, med målet att ha avtal med frivilliga som snabbt kan nyttjas vid insats. Detta innebär en större initial arbetsinsats för att planera arbetet, hitta dess former och integrera de frivilliga.\nIntegreringen av utbildade och övade frivilliga i utvecklingen av det civila försvaret är fortfarande i en utvecklingsfas. Det gäller såväl kunskap om hur de frivilliga försvarsorganisationernas förmågor kan möta beredskapsbehov som metoder att utveckla samverkan och rutiner för att nyttja frivilliga. Projektet avser utöver kapacitetsuppbyggnad även dokumentera och utvärdera de erfarenheter som görs för att kunna dela med sig till MSB och andra för att stärka samhället samlade beredskap.\n\nStaten har på senare år kraftigt förstärkt finansieringen av utbildningsuppdrag till de frivilliga försvarsorganisationerna. En ändamålsenlig inriktning av dessa förstärkningar förutsätter att offentliga aktörer tydliggör sina behov av förstärkningsresurser och etablerar samarbeten/partnerskap med organisationerna. \n\nMSB utgår ifrån att projekt för frivilligutveckling 2022-2023 genomförs hos flera myndigheter, och avser erbjuda nätverk eller motsvarande för att stödja utvecklingen och möjliggöra erfarenhetsutbyte med andra aktörer."]
[]
[]
[]
[]
[]
[]
[]
[]
[]
[]
[]
[]
[null,"2.2 Vilka aktörer är målgrupp/er för projektet? "]
[null,"Med målgrupp avses en aktör vars förmåga kommer att stärkas av projektets genomförande. "]
[]
[]
[]
[]
[]
[]
[null,"2.6 Finns det pågående eller kommande projekt/regeringsuppdrag/utredningar som "]
[null,"projektet behöver ta hänsyn till? "]
[null,"Beskriv övrig egen pågående eller kommande verksamhet inom området. Beskriv särskilt eventuella uppdrag och hur detta projekt kan komplettera eller förstärka dem. "]
[]
[]
[]
[]
[]
[null,"2.7 Finns det avgörande framgångsfaktorer eller risker som behöver hanteras för att"]
[null,"projektet ska kunna genomföras?"]
[]
[]
[]
[]
[]
[]
[]
[]
[null,"3. PROJEKTETS RESULTAT"]
[null,"Del 3 använder begrepp och uttryck från verksamhetslogik. Verksamhetslogik är ett systematiskt sätt att beskriva verksamheters förutsättningar, genomförande och väntade effekter (ESV 2016:31). Resurser är det som behövs för att genomföra projektet, ni redovisar de resurser ni söker ersättning för på fliken Budget. Aktiviteter är den verksamhet som bedrivs inom ramen för det aktuella projektet, de kommer ni att beskriva i del 4 i ansökan. I den här delen redogör ni för projektets prestationer, det vill säga de leveranser som projektet ska prestera, och projektets väntade effekter på kort och längre sikt för att visa på hur projektet bidrar till att stärka samhällets beredskap som utgör slutmålet. Prestationerna och effekterna utgör projektets resultat. Se även fliken \"Exempel verksamhetslogik\" i denna fil.\n\n\n\n\n\nPå ESV:s webbsida finns en vägledning och en webbutbildning i verksamhetslogik (länk nedan) och ovan en översiktlig figur över hur de olika delarna hänger ihop. Använd gärna \"Sorteringstabellen\" i vägledningen (tabell 4.1) som stöd för att visualisera er verksamhetslogik.."]
[]
[]
[]
[]
[]
[]
[]
[]
[]
[]
[]
[]
[]
[]
[]
[]
[]
[null,"Länk till Verksamhetslogik - Ekonomistyrningsverket (esv.se) och vägledningen (2016:31)"]
[null,"Webbutbildningar - Ekonomistyrningsverket (esv.se)"]
[]
[null,"3.1 Beskriv nuläget"]
[null,"Sätt projektets behov i en kontext genom att beskriva hur situationen ser ut idag."]
[null,"Beskriv nuläget på myndigheten i relation till de effektmål på kort och lång sikt som beskrivs under 3.3 nedan.\n\nBeskriv vidare förutsättningarna för myndigheten för att arbeta gentemot dessa mål utan respektive med ett sådant ekonomiskt bidrag som denna riktade satsning möjliggör."]
[]
[]
[]
[]
[]
[]
[]
[]
[]
[null,"3.2 Beskriv projektets prestationer: vad förväntas projektet leverera?"]
[null,"Prestationer är det som lämnar projektet; de uppkommer som en direkt följd eller i nära anslutning till att en aktivitet genomförs. En prestation kan vara en tjänst eller en vara, exempelvis en genomförd övning, mätning, utbildning eller framtagen rapport, vägledning, metod, modell, kartläggning osv.\n\nExempel: i ett projekt som ska ta fram en vägledning planeras för referensgruppsmöten, kunskapsinhämtning, att skriva vägledningen och framtagande av utbildning i vägledningen (aktiviteter). Vid projektslut ska det att finnas en publicerad vägledning och man har hållit ett antal utbildningar i vägledningen (prestationer)."]
[]
[]
[]
[]
[]
[]
[null,"Skriv svaret här:"]
[null,"Beskriv planerade prestationer utifrån rubrikerna nedan:\n• Kunskapsuppbyggnad\n• Behovsanalys\n• Utbildningsbehov\n• Avtal och överenskommelser \n• Mottagarkapacitet\n• Samverkan med andra myndigheter i arbetet med frivilliga försvarsorganisationer\n\nFyll ev. på med ytterligare prestationer som gäller för aktuell myndighet"]
[]
[]
[]
[]
[]
[]
[]
[]
[]
[null,"3.3 Vilka effekter på beredskap förväntas projektet leda till?"]
[null,"Enligt finansieringsprinciperna ska projekten ha påvisbara effekter på samhällets samlade krisberedskap eller den samlade förmågan att hantera kriser och dess konsekvenser. Detta är det slutmål som projektet siktar mot.  En effekt är den förändring som sker i samhället som en följd först av prestationer (effekt på kort sikt) och därefter som en följd på de tidigare effekterna (effekt på medellång och lång sikt).\n\nUtgå från det behov ni valt i fråga 1.7, det nuläge ni beskrivit i 3.1 och de prestationer ni angett i fråga 3.2 och koppla dem till ovan nämnda mål när ni besvarar den här frågan."]
[]
[]
[]
[]
[]
[]
[]
[null,"3.3.1 Effekter på kort sikt (som prestationerna leder till):"]
[null,"Effekter på kort sikt förväntas ske som en följd av prestationerna. \n\nExempel: den kortsiktiga effekten av ett projekt som tagit fram en vägledning (prestation) vara att målgrupperna för vägledningen och de som deltagit i referensgrupper har fått ökad kunskap på området. "]
[]
[]
[]
[null,"Vid behov utveckla egen beskrivning utifrån rubriker nedan\n- Ökad kunskap om frivilliga försvarsorganisationer förstärkningsresurser inom den egna verksamheten\n- Samverkan har etablerats och/eller stärkts med berörda frivilliga försvarsorganisationer\n- Den egna verksamhetens behov av frivilliga förstärkningsresurser har beskrivits/preciserats\n- De första avtalen finns på plats\n- Strukturer och rutiner för att kunna nyttja utbildade frivilliga inom ramen för myndighetens personalförsörjning på beredskapsområdet finns på plats.\n\n"]
[]
[]
[]
[]
[]
[]
[]
[]
[]
[null,"3.3.2 Effekter på medellång och lång sikt (som de kortsiktiga effekterna leder till):"]
[null,"Effekter på medellång och lång sikt är det som förväntas ske som en följd av de kortsiktiga effekterna. \n\nExempel: ett projekt tar fram en vägledning (prestation) som bidrar till att målgrupperna får ökad kunskap på området (effekt på kort sikt). Målgruppen upparbetar nya rutiner och övar dessa (effekt på medellång sikt) vilket i sin tur innebär att det finns en långsiktig och systematisk hantering på plats (effekt på lång sikt). Det här väntas stärka samhällets beredskap (slutmål)."]
[]
[]
[]
[]
[]
[null,"Vid behov utveckla egen beskrivning utifrån rubriker nedan\n-Myndigheten kan snabbt nyttja utbildad, avtalad och krigsplacerad frivillig förstärkningspersonal för nödvändiga uppgifter inom totalförsvaret. \n-Myndigheten har också sett över vilka av dessa som kan nyttjas inom ramen för krisberedskapen, och vidtagit åtgärder för detta.\n\nGenom att systematiskt vidareutveckla frivilligarbetet och tillvarata metodutveckling skapas också förutsättningar för en effektiv och sammanhängande planering, som är prövad i verkligheten. Det skapar långsiktiga förutsättningar för samverkan och förutsägbarhet inte minst för de frivilliga försvarsorganisationerna.\n\nDen samverkan som etableras kommer att kunna bestå på lång sikt och därmed ytterligare stärka beredskapsarbetet genom att kontinuerligt utveckla arbetet med personalplanering i allmänhet och resurser från frivilliga försvarsorganisationer i synnerhet."]
[]
[]
[]
[]
[]
[]
[]
[]
[]
[null,"3.4 Hur ska projektet följas upp?"]
[null,"Ge förslag på minst en indikator som kan användas för att följa upp projektets prestationer som ni angett i fråga 3.3 och/eller effekter på samhällets samlade beredskap i fråga 3.4. Indikatorerna kommer vid beviljat projekt att följas upp i samband med er verksamhetsuppföljning och vid dialoger under projekttiden. Typ och antal indikatorer bestämmer ni själva utifrån projektets karaktär.\n\nExempel på indikatorer för prestationer: antal genomförda utbildningstillfällen, övade aktörer/deltagare, antal informationsträffar, genomförda tester osv, beroende på vad projektet ska leverera.\nExempel på indikatorer för effekter: ett projekt vars prestation är att ta fram en handbok eller vägledning skulle exempelvis kunna mäta hur många som 1) känner till vägledningen, 2) har läst vägledningen, och 3) har använt vägledningen vid en övning."]
[]
[]
[]
[]
[]
[]
[]
[]
[]
[]
[null,"Skriv svaret här:"]
[null,"Anpassa beskrivning med hjälp av denna text: \nIndikatorer för prestationer:\n- Antal etablerade kontakter med frivilliga försvarsorganisationer\n- Antal genomförda gemensamma planeringsaktiviteter\n- Deltagande i möten i myndighetsnätverk\n- Tecknade avtal med de utbildade frivilliga från frivilliga försvarsorganisationer\n\nIndikatorer för effekter:\n- Myndigheten bedömer att den egna förmågan inom krisberedskapen och civilt försvar har ökat.\n- Tecknade av avsiktsförklaringar om samarbete med berörda frivilliga försvarsorganisationer\n- 2:4-ansökningar om uppdragsmedel för frivilligutbildningar (går till MSB via organisationerna, efter dialog och underskrift av avnämarblankett som intygar behoven).\n- Genomförda utbildningar och övningar\n"]
[]
[]
[]
[]
[]
[]
[]
[]
[]
[null,"3.5 Plan för implementering och spridning av resultatet:"]
[null,"När finansiering med anslag 2:4 upphör ska projektet övergå till myndighetens ordinarie verksamhet. Här beskriver ni både hur projektets prestationer ska tas tillvara inom den egna verksamheten och hur det ska spridas till andra aktörer."]
[]
[]
[null,"Beskriv här hur ni inom den egna myndigheten och med de frivilliga försvarsorganisationer ni involverar kommer att följa upp projektet.\n\nMSB avser att samlat följa upp prestationerna och effekterna av de projekt som bedrivs inom ramen för den riktade satsningen såväl under projekttiden som efter projektavslut."]
[]
[]
[]
[]
[]
[]
[null,"3.6 Vilka framtida förvaltningskostnader väntas projektet generera? Om inga, ange det och förklara."]
[null,"Enligt finansieringsprinciperna ska sökande myndighet redogöra för den fortsatta finansieringen efter projektavslut. Var därför tydlig med vem/vilka som ansvarar för kostnaden samt hantering av eventuell risk om kostnaden inte kan tillgodoses efter projektavslut."]
[]
[]
[null,"Anpassa beskrivning med hjälp av denna text: \nProjektet förväntas generera kostnader relaterat till en funktion som ansvarar för fortsatt hantering av kontakt med frivilliga försvarsorganisationer, samt kostnader som uppstår i samband med att dessa kallas in till övning och repetitionsutbildning. Kostnaden bedöms ligga på en lägre nivå än under projekttiden som utgör en uppstartsfas. I stort kommer kostnaden därmed bestå av del av en tjänst (lönekostnader), temporära löner för de frivilliga samt enstaka utgifter för resor etc. Fortsatt finansiering kommer att säkras genom de särskilda medel som myndigheten disponerar för beredskapsplanering vilka bedöms minst ligga kvar på samma nivå som innevarande år."]
[]
[]
[]
[]
[]
[]
[]
[null,"4. PROJEKTETS GENOMFÖRANDE"]
[null,"I del 4 beskriver ni projektets aktiviteter och redogör för samverkande aktörer.\n\n\n\n\n"]
[]
[]
[]
[]
[]
[]
[null,"4.1 Omfattar projektet en egeninitierad övning eller övningsmoment? "]
[null,"En egeninitierad övning innebär att ni planerar en övning eller övningsmoment inom ramen för det aktuella projektet, "]
[null,"och då ska ni även fylla i bilagan om övning."]
[]
[null,"(Välj i rullistan)",null,null,null,null,null,null,null,{"$f":"IF(B315=\"Ja\",\"Ni måste fylla i fliken 'Bilaga för övning' för att ansökan ska vara fullständig.\",\"\")","v":""}]
[null,null,null,null,null,"Klicka här för att komma direkt till bilagan om övning."]
[]
[null,"4.2 Aktivitetsplan"]
[null,"Ange i stora drag de aktiviteter som krävs för att uppnå förväntade prestationer i projektet och när i tid som ni planerar att genomföra varje aktivitet.\n\nOBS! Om er beskrivning av en aktivitet blir längre än den mängd text som kan visas i rutan kan ni förstora raden genom att dra i skiljelinjen mellan radnumren till vänster eller infoga nya rader."]
[]
[]
[]
[]
[]
[null,"Tidpunkt (ungefärlig)",null,"Aktiviteter (Anpassa utifrån förslag nedan. Rubrikerna \"MSB bjuder in\" är obligatoriska)"]
[null,"februari år 1",null,"MSB bjuder in: Gemensam uppstartsdag för myndigheter med verksamhet inom den riktade satsningen"]
[null,null,null,"Behov - intern analys görs för att i grova drag identifiera vilka behov som finns inom myndigheten. Omfattar framförallt internt analysarbete."]
[null,null,null,"Behov  -  ev. säkerhetspröva individer som ska medverka i arbetet"]
[null,"höst år 1",null,"MSB bjuder in: Samverkansaktivitet för myndigheter med verksamhet inom den riktade satsningen"]
[null,null,null,"Behov - tillsammans med frivilliga försvarsorganisationer förfina myndighetens behovsbild."]
[null,null,null,"Uppbyggnad - ta fram ett formaliserat samarbete med frivilliga försvarsorganisationer. Tillsammans med frivilliga försvarsorganisationerna utarbeta en avsiktsförklaring om samarbete och underteckna denna. "]
[null,"vår år 2",null,"MSB bjuder in: Samverkansaktivitet för myndigheter med verksamhet inom den riktade satsningen"]
[null,null,null,"Uppbyggnad - Identifiera viktiga områden där förstärkningsresurser behövs samt vilka utbildningar som krävs för de frivilliga."]
[null,null,null,"Genomförande -  Detaljplanera i planering/kravställning och om nödvändigt delta i genomförande av utbildningsaktiviteter."]
[null,null,null,"Genomförande - Säkerhetspröva frivilliga, teckna avtal och krigsplacera"]
[null,null,null,"Genomförande - Utveckla myndighetens mottagarkapacitet"]
[null,null,null,"Vidmakthållande(förvaltande av projektets resultat) - Myndigheten tar fram en plan för hur man avser fortsätta arbeta tillsammans med frivilliga försvarsorganisationer"]
[null,null,null,"Avsluta - Utvärdera tillsammans med frivilliga försvarsorganisationerna och dokumentera."]
[null,"höst år 2",null,"MSB bjuder in: Samverkansaktivitet och uppsummering för myndigheter med verksamhet inom den riktade satsningen"]
[]
[null,"4.3 Vilka aktörer samverkar ni med i projektet och hur?"]
[null,"Ange aktörerna med vilka ni samverkar inom projektet och en kontaktperson som MSB kan ta kontakt med. Bekräfta också att berörd aktör är vidtalad. Tänk på att resultatet oftast blir bättre om målgruppen är aktivt involverad i projektet. \n\nOBS! Om er beskrivning av en aktivitet blir längre än den mängd text som kan visas i rutan kan ni förstora raden genom att dra i skiljelinjen mellan radnumren till vänster eller infoga nya rader."]
[]
[]
[]
[]
[]
[]
[null,"Aktör",null,"Delaktighet, ange hur",null,null,null,"Kontaktperson + tel.",null,"Vidtalad?"]
[null,"Frivilliga försvarsorganisationer",null,"Bistår inledningsvis genom att förklara sina förmågor, därefter som utförare av delar av projektet.",null,null,null,null,null,"(Välj i listan)"]
[null,"Samverkande myndighet X",null,"Arbetar tillsammans i nätverk för att dela erfarenheter och söka praktiska synergier",null,null,null,null,null,"(Välj i listan)"]
[null,"Samverkande myndighet Y",null,"Arbetar tillsammans i nätverk för att dela erfarenheter och söka praktiska synergier",null,null,null,null,null,"(Välj i listan)"]
[null,"MSB",null,"Organisatör av riktad satsning rörande samverkan med frivilliga försvarsorganisationer",null,null,null,"Gustaf Åhman, Sofie Cederquist",null,"JA"]
[null,null,null,null,null,null,null,null,null,"(Välj i listan)"]
[null,null,null,null,null,null,null,null,null,"(Välj i listan)"]
[null,null,null,null,null,null,null,null,null,"(Välj i listan)"]
[null,null,null,null,null,null,null,null,null,"(Välj i listan)"]
[null,null,null,null,null,null,null,null,null,"(Välj i listan)"]
[null,null,null,null,null,null,null,null,null,"(Välj i listan)"]
[null,null,null,null,null,null,null,null,null,"(Välj i listan)"]
[]
[]
[null,"Innan ni skickar in er ansökan ska ni fylla i budgeten, se fliken \"Budget\" i detta dokument. "]
[null,"Klicka här för att komma direkt till budgeten."]
[]
[null,"Om er projektplan innehåller ett eller flera övningsmoment ska ni även fylla i fliken \"Bilaga för övning\"."]
[null,"Klicka här för att komma direkt till bilagan om övning."]

{"sheet":"Del 5, Budget","index":1,"n_rows":120,"n_cols":11,"rows_kept":120,"cut":false,"hidden":false,"merged":[[44,6,44,7],[46,6,46,7],[41,4,41,5],[41,6,41,7],[41,8,41,9],[41,10,41,11],[42,1,42,3],[42,4,42,5],[42,6,42,7],[42,8,42,9],[42,10,42,11],[44,8,44,9],[118,2,118,6],[119,2,119,6],[113,2,113,6],[114,2,114,6],[115,2,115,6],[116,2,116,6],[117,2,117,6],[111,2,111,6],[112,2,112,6],[36,8,36,9],[46,10,46,11],[31,1,31,3],[34,1,34,3],[37,1,37,3],[40,1,40,3],[43,1,43,3],[46,1,46,3],[45,4,45,5],[45,6,45,7],[45,8,45,9],[38,10,38,11],[39,10,39,11],[45,10,45,11],[38,4,38,5],[39,4,39,5],[38,6,38,7],[39,6,39,7],[38,8,38,9],[39,8,39,9],[36,10,36,11],[44,10,44,11],[41,1,41,3],[44,4,44,5],[35,8,35,9],[3,1,23,11],[30,10,30,11],[32,10,32,11],[33,10,33,11],[34,10,34,11],[34,8,34,9],[30,1,30,3],[32,1,32,3],[33,1,33,3],[31,4,31,5],[31,6,31,7],[31,8,31,9],[30,8,30,9],[32,8,32,9],[33,8,33,9],[31,10,31,11],[35,10,35,11],[36,1,36,3],[36,4,36,5],[0,1,0,3],[30,6,30,7],[32,6,32,7],[33,6,33,7],[34,6,34,7],[30,4,30,5],[32,4,32,5],[33,4,33,5],[34,4,34,5],[35,1,35,3],[35,4,35,5],[35,6,35,7],[36,6,36,7],[108,1,109,7],[108,8,109,10],[37,8,37,9],[47,10,47,11],[47,6,47,7],[47,8,47,9],[37,6,37,7],[40,6,40,7],[43,6,43,7],[40,8,40,9],[43,8,43,9],[43,10,43,11],[37,10,37,11],[37,4,37,5],[40,4,40,5],[43,4,43,5],[47,4,47,5],[40,10,40,11],[44,1,44,3],[38,1,38,3],[39,1,39,3],[45,1,45,3],[46,4,46,5],[46,8,46,9]]}
[null,"Klicka här för att komma tillbaka till projektplanen"]
[]
[null,"5. BUDGET"]
[null,"I del 5 redogör ni för projektets resurser genom att ange de kostnader ni vill söka anslagsmedel för. Läs igenom instruktionerna på sidan innan ni börjar fylla i. Vid frågor, kontakta anslag2-4@msb.se\n\n\n\n\n\n\nGör så här:\n1. Börja med att klicka i kryssrutan i den grå rutan nedan för att intyga att finansieringesprinciperna följs.\n2. Bläddra ner till tabellerna 5.2-7 för att fylla i era budgeterade kostnader. Fyll i grå rutor, alla lila rutor är förifyllda eller summeras automatiskt.\n3. Gå tillbaka till tabellen PROJEKTBUDGET högst upp på sidan och kontrollera att beloppen beräknats korrekt.\n4. Notera att ni kan klicka på knapparna ovanför projketbudgeten för att se kostnaderna uppdelat på den egna myndigheten respektive samverkanspartners (\"Visa delsummor\").\n\nExtrafunktion: Visa kostnader hos samverkanspartners\nI första kolumnen anger ni om kostnaden uppstår hos den egna myndigheten eller hos en samverkanspartner. Den egna myndigheten är förifylld, så ni behöver bara göra detta om kostnaden uppstår hos en partner. När samverkanspartner är vald som alternativ blir cellen orange för att det ska synas bättre. Om ni vill se kostnader uppdelat på den egna myndigheten och på samverkanspartners i Projektbudget, kan ni klicka på knappen \"Visa sökt belopp uppdelat mellan...\" ovanför tabellen. Klicka på knappen \"Dölj summeringen av sökt belopp mellan....\" för att dölja delsummorna igen. Den här funktionen har ingen betydelse för er ansökan, utan finns bara tillgänglig som ett stöd vid budgetering."]
[]
[]
[]
[]
[]
[]
[]
[]
[]
[]
[]
[]
[]
[]
[]
[]
[]
[]
[]
[]
[]
[]
[]
[]
[]
[null,"PROJEKTBUDGET"]
[null,null,null,null,{"$f":"\"Total kostnad \"&Koppling!B3","v":"Total kostnad 2023"},null,{"$f":"\"Total kostnad \"&Koppling!B4","v":"Total kostnad 2024"},null,"Total kostnad 2024",null,"Hela projektperioden"]
[null,"Lönekostnad",null,null,{"$f":"SUM(E33:F34)","v":0},null,{"$f":"SUM(G33:H34)","v":0},null,{"$f":"SUM(I33:J34)","v":0},null,{"$f":"SUM(E32:H32)","v":0}]
[null,"Egna myndigheten",null,null,{"$f":"SUMIFS(T_lönekostnad[Summa],T_lönekostnad[Var uppstår kostnaden?],\"Egna myndigheten\",T_lönekostnad[ÅR],2022)","v":0},null,{"$f":"SUMIFS(T_lönekostnad[Summa],T_lönekostnad[Var uppstår kostnaden?],\"Egna myndigheten\",T_lönekostnad[ÅR],2023)","v":0}]
[null,"Samverkanspartner",null,null,{"$f":"SUMIFS(T_lönekostnad[Summa],T_lönekostnad[Var uppstår kostnaden?],\"Samverkanspartner\",T_lönekostnad[ÅR],2022)","v":0},null,{"$f":"SUMIFS(T_lönekostnad[Summa],T_lönekostnad[Var uppstår kostnaden?],\"Samverkanspartner\",T_lönekostnad[ÅR],2023)","v":0}]
[null,"Extern tjänst/sakkunskap",null,null,{"$f":"SUMIF(T_externtj[ÅR],2022,T_externtj[Summa])","v":0},null,{"$f":"SUMIF(T_externtj[ÅR],2023,T_externtj[Summa])","v":0},null,{"$f":"SUMIF(T_externtj[ÅR],2024,T_externtj[Summa])","v":0},null,{"$f":"SUM(E35:H35)","v":0}]
[null,"Egna myndigheten",null,null,{"$f":"SUMIFS(T_externtj[Summa],T_externtj[Var uppstår kostnaden?],\"Egna myndigheten\",T_externtj[ÅR],2022)","v":0},null,{"$f":"SUMIFS(T_externtj[Summa],T_externtj[Var uppstår kostnaden?],\"Egna myndigheten\",T_externtj[ÅR],2023)","v":0}]
[null,"Samverkanspartner",null,null,{"$f":"SUMIFS(T_externtj[Summa],T_externtj[Var uppstår kostnaden?],\"Samverkanspartner\",T_externtj[ÅR],2022)","v":0},null,{"$f":"SUMIFS(T_externtj[Summa],T_externtj[Var uppstår kostnaden?],\"Samverkanspartner\",T_externtj[ÅR],2023)","v":0}]
[null,"Resa och logi",null,null,{"$f":"SUMIF(T_resalogi[ÅR],2022,T_resalogi[Summa])","v":0},null,{"$f":"SUMIF(T_resalogi[ÅR],2023,T_resalogi[Summa])","v":0},null,{"$f":"SUMIF(T_resalogi[ÅR],2024,T_resalogi[Summa])","v":0},null,{"$f":"SUM(E38:H38)","v":0}]
[null,"Egna myndigheten",null,null,{"$f":"SUMIFS(T_resalogi[Summa],T_resalogi[Var uppstår kostnaden?],\"Egna myndigheten\",T_resalogi[ÅR],2022)","v":0},null,{"$f":"SUMIFS(T_resalogi[Summa],T_resalogi[Var uppstår kostnaden?],\"Egna myndigheten\",T_resalogi[ÅR],2023)","v":0}]
[null,"Samverkanspartner",null,null,{"$f":"SUMIFS(T_resalogi[Summa],T_resalogi[Var uppstår kostnaden?],\"Samverkanspartner\",T_resalogi[ÅR],2022)","v":0},null,{"$f":"SUMIFS(T_resalogi[Summa],T_resalogi[Var uppstår kostnaden?],\"Samverkanspartner\",T_resalogi[ÅR],2023)","v":0}]
[null,"Anläggningstillgång",null,null,{"$f":"SUMIF(T_inventarie[ÅR],2022,T_inventarie[Summa])","v":0},null,{"$f":"SUMIF(T_inventarie[ÅR],2023,T_inventarie[Summa])","v":0},null,{"$f":"SUMIF(T_inventarie[ÅR],2024,T_inventarie[Summa])","v":0},null,{"$f":"SUM(E41:H41)","v":0}]
[null,"Egna myndigheten",null,null,{"$f":"SUMIFS(T_inventarie[Summa],T_inventarie[Var uppstår kostnaden?],\"Egna myndigheten\",T_inventarie[ÅR],2022)","v":0},null,{"$f":"SUMIFS(T_inventarie[Summa],T_inventarie[Var uppstår kostnaden?],\"Egna myndigheten\",T_inventarie[ÅR],2023)","v":0}]
[null,"Samverkanspartner",null,null,{"$f":"SUMIFS(T_inventarie[Summa],T_inventarie[Var uppstår kostnaden?],\"Samverkanspartner\",T_inventarie[ÅR],2022)","v":0},null,{"$f":"SUMIFS(T_inventarie[Summa],T_inventarie[Var uppstår kostnaden?],\"Samverkanspartner\",T_inventarie[ÅR],2023)","v":0}]
[null,"Övriga kostnad",null,null,{"$f":"SUMIF(T_ovrigt[ÅR],2022,T_ovrigt[Summa])","v":0},null,{"$f":"SUMIF(T_ovrigt[ÅR],2023,T_ovrigt[Summa])","v":0},null,{"$f":"SUMIF(T_ovrigt[ÅR],2024,T_ovrigt[Summa])","v":0},null,{"$f":"SUM(E44:H44)","v":0}]
[null,"Egna myndigheten",null,null,{"$f":"SUMIFS(T_ovrigt[Summa],T_ovrigt[Var uppstår kostnaden?],\"Egna myndigheten\",T_ovrigt[ÅR],2022)","v":0},null,{"$f":"SUMIFS(T_ovrigt[Summa],T_ovrigt[Var uppstår kostnaden?],\"Egna myndigheten\",T_ovrigt[ÅR],2023)","v":0}]
[null,"Samverkanspartner",null,null,{"$f":"SUMIFS(T_ovrigt[Summa],T_ovrigt[Var uppstår kostnaden?],\"Samverkanspartner\",T_ovrigt[ÅR],2022)","v":0},null,{"$f":"SUMIFS(T_ovrigt[Summa],T_ovrigt[Var uppstår kostnaden?],\"Samverkanspartner\",T_ovrigt[ÅR],2023)","v":0}]
[null,"Kostnad för övning",null,null,{"$f":"SUMIF('Del 5, Budget'!$H$113:$H$119,2022,'Del 5, Budget'!$K$113:$K$119)","v":0},null,{"$f":"SUMIF('Del 5, Budget'!$H$113:$H$119,2023,'Del 5, Budget'!$K$113:$K$119)","v":0},null,null,null,{"$f":"SUM(E47:H47)","v":0}]
[null,"Total sökt kostnad per år",null,null,{"$f":"E32+E35+E38+E41+E44+E47","v":0},null,{"$f":"G32+G35+G38+G41+G44+G47","v":0},null,null,null,{"$f":"K32+K35+K38+K41+K44+K47","v":0}]
[]
[null,"5.1 Intyga att finansieringsprinciperna följs"]
[]
[]
[]
[]
[null,"5.2. Lönekostnad (du kan byta från lön för egen personal till lön för personal hos samverkanspartner genom att välja alternativ i första kolumnen)"]
[null,"Var uppstår kostnaden?","Befattning","ÅR","Månadslön","Lönebikostnad (%)","Omfattning (%)","à pris (per mån)","Antal mån (under valt år)","Summa"]
[null,"Egna myndigheten",null,"Ange år",0,null,null,{"$f":"E57*(1+F57)*G57","v":0},null,{"$f":"ROUND(H57*I57,0)","v":0}]
[null,"Egna myndigheten",null,"Ange år",0,null,null,{"$f":"E58*(1+F58)*G58","v":0},null,0]
[null,"Egna myndigheten",null,"Ange år",0,null,null,0,null,0]
[null,"Egna myndigheten",null,"Ange år",0,null,null,0,null,0]
[null,"Egna myndigheten",null,"Ange år",0,null,null,0,null,0]
[null,"Egna myndigheten",null,"Ange år",0,null,null,0,null,0]
[null,"Egna myndigheten",null,"Ange år",0,null,null,0,null,0]
[null,"Egna myndigheten",null,"Ange år",0,null,null,0,null,0]
[null,"Egna myndigheten",null,"Ange år",0,null,null,0,null,0]
[null,"Egna myndigheten",null,"Ange år",0,null,null,0,null,0]
[null,"Summa",null,null,null,null,null,null,null,{"$f":"SUBTOTAL(109,T_lönekostnad[Summa])","v":0}]
[]
[null,"5.3 Extern tjänst"]
[null,"Var uppstår kostnaden?","Typ av kostnad och beskrivning av tjänst","ÅR","Kr/antal","Antal","Summa"]
[null,"Egna myndigheten",null,"Ange år",0,null,{"$f":"ROUND(E71*F71,0)","v":0}]
[null,"Egna myndigheten",null,"Ange år",0,null,0]
[null,"Egna myndigheten",null,"Ange år",0,null,0]
[null,"Egna myndigheten",null,"Ange år",0,null,0]
[null,"Egna myndigheten",null,"Ange år",0,null,0]
[null,"Egna myndigheten",null,"Ange år",0,null,0]
[null,"Summa",null,null,null,null,{"$f":"SUBTOTAL(109,T_externtj[Summa])","v":0}]
[]
[null,"5.4 Resa och logi (ange en resa per rad)"]
[null,"Var uppstår kostnaden?","Ange resmål, syfte, resenär","ÅR","Kr/person","Antal personer","Summa"]
[null,"Egna myndigheten",null,"Ange år",0,null,{"$f":"ROUND(E81*F81,0)","v":0}]
[null,"Egna myndigheten",null,"Ange år",0,null,0]
[null,"Egna myndigheten",null,"Ange år",0,null,0]
[null,"Egna myndigheten",null,"Ange år",0,null,0]
[null,"Egna myndigheten",null,"Ange år",0,null,0]
[null,"Egna myndigheten",null,"Ange år",0,null,0]
[null,"Summa",null,null,null,null,{"$f":"SUBTOTAL(109,T_resalogi[Summa])","v":0}]
[]
[null,"5.5 Anläggningstillgång (en anläggnignstillgång är en tillgång som är avsedd för innehav eller stadigvarande bruk)"]
[null,"Var uppstår kostnaden?","Beskriv anskaffning och användning","ÅR","Anskaffnings-värde","Nyttjandegrad (%)","Summa"]
[null,"Egna myndigheten",null,"Ange år",0,null,{"$f":"ROUND(E91*F91,0)","v":0}]
[null,"Egna myndigheten",null,"Ange år",0,null,{"$f":"ROUND(E92*F92,0)","v":0}]
[null,"Egna myndigheten",null,"Ange år",0,null,{"$f":"ROUND(E93*F93,0)","v":0}]
[null,"Egna myndigheten",null,"Ange år",0,null,{"$f":"ROUND(E94*F94,0)","v":0}]
[null,"Summa",null,null,null,null,{"$f":"SUBTOTAL(109,T_inventarie[Summa])","v":0}]
[]
[null,"5.6 Övrig kostnad (hyra extern lokal, förbrukningsmateriel och andra kostnader som inte passar under övriga kategorier)"]
[null,"Var uppstår kostnaden?","Typ av kostnad och beskrivning av syftet","ÅR","Kr/antal","Antal","Summa"]
[null,"Egna myndigheten",null,"Ange år",0,null,{"$f":"ROUND(E99*F99,0)","v":0}]
[null,"Egna myndigheten",null,"Ange år",0,null,0]
[null,"Egna myndigheten",null,"Ange år",0,null,{"$f":"ROUND(E101*F101,0)","v":0}]
[null,"Egna myndigheten",null,"Ange år",0,null,0]
[null,"Egna myndigheten",null,"Ange år",0,null,0]
[null,"Egna myndigheten",null,"Ange år",0,null,0]
[null,"Summa",null,null,null,null,{"$f":"SUBTOTAL(109,T_ovrigt[Summa])","v":0}]
[]
[null,"5.7 Kostnad för övning enligt bilaga (fyll i fliken Bilaga för övning om projketet innehåller övningsmoment)"]
[]
[null,"Information om att söka ersättning för egeninitierade övningar inom projektet finns på MSB:s webbsida.",null,null,null,null,null,null,"Klicka här för att komma till webbsidan."]
[]
[]
[null,"Kostnadstyp","Beskriv kostnaden",null,null,null,null,"ÅR","Kr/antal","Antal","Summa"]
[null,"(Välj)",null,null,null,null,null,"Ange år",0,null,{"$f":"ROUND(I113*J113,0)","v":0}]
[null,"(Välj)",null,null,null,null,null,"Ange år",0,null,{"$f":"ROUND(I114*J114,0)","v":0}]
[null,"(Välj)",null,null,null,null,null,"Ange år",0,null,0]
[null,"(Välj)",null,null,null,null,null,"Ange år",0,null,0]
[null,"(Välj)",null,null,null,null,null,"Ange år",0,null,0]
[null,"(Välj)",null,null,null,null,null,"Ange år",0,null,0]
[null,"(Välj)",null,null,null,null,null,"Ange år",0,null,{"$f":"ROUND(I119*J119,0)","v":0}]
[null,"Summa",null,null,null,null,null,null,null,null,{"$f":"SUM(K113:K119)","v":0}]

{"sheet":"Del 6, Bilaga Övning","index":2,"n_rows":89,"n_cols":10,"rows_kept":89,"cut":false,"hidden":false,"merged":[[89,1,91,9],[70,1,70,4],[71,1,71,4],[74,1,75,9],[69,1,69,4],[69,5,69,8],[70,5,70,8],[71,5,71,8],[0,1,0,5],[68,1,68,4],[77,1,79,9],[66,1,66,4],[67,1,67,4],[66,5,66,8],[67,5,67,8],[68,5,68,8],[3,1,14,9],[32,1,36,9],[61,1,61,4],[39,1,43,9],[61,5,61,9],[56,5,56,9],[46,1,48,9],[17,1,18,9],[63,1,63,4],[63,5,63,8],[65,1,65,4],[64,1,64,4],[64,5,64,8],[65,5,65,8]]}
[null,"Klicka här för att komma tillbaka till projektplanen"]
[]
[null,"6. Bilaga till projektplan: Övning"]
[null,"Den här delen fyller ni i om ert sökta utvecklingsprojekt innehåller en eller flera övningar. Följande förutsättningar gäller för att kunna beviljas medel:\n• Att det är en samverkansövning med flera aktörer.\n• Att samtliga samverkande aktörer är vidtalade och har bekräftat sitt deltagande. \n• Övningen ska omfatta minst ett område/en aspekt inom gällande övningsinriktning.\n• Att det finns ett tydligt syfte med övningen.\n• Att det finns en plan eller inriktning för utvärdering och erfarenhetshantering (dvs hur resultaten ska tas om hand efter övningen).\n\nOm ni har behov av flera övningsbilagor för att dokumentera flera övningar kan ni högerklicka på fliken \"Bilaga för övning\" och sen välja \"Flytta eller kopiera...\" och kryssa i rutan \"Skapa en kopia\" innan ni klickar på OK. Då kopieras det valda bladet."]
[]
[]
[]
[]
[]
[]
[]
[]
[]
[]
[]
[]
[null,"Projekttitel"]
[null,{"$f":"IF('Del 1-4, Projektplan'!B40=\"\",\"Här visas namnet ni angett på fliken Del 1-4, Projektplan.\",'Del 1-4, Projektplan'!B40)","v":"Utveckling av arbetet med frivilliga försvarsorganisationer"}]
[]
[]
[null,"5.5 Intyganden"]
[]
[]
[]
[]
[]
[]
[]
[]
[]
[null,"6.1 Ge en kort beskrivning av den planerade övningen och koppla till övningsinriktningen"]
[null,"Vad är det som ska övas och hur? Hur kopplar övningen till övningsinriktningen?"]
[]
[]
[]
[]
[]
[]
[null,"6.2 Motivera kort övningens betydelse för projketet"]
[]
[]
[]
[]
[]
[]
[null,"6.3 När ska övningen genomföras? (koppla detta tydligt till er aktivitetsplan i del 4.1)"]
[]
[]
[]
[]
[null,"6.4 Vilket eller vilka övningsformat ska användas? (möjligt att välja flera svarsalternaitv)"]
[]
[]
[]
[]
[]
[]
[]
[null,"6.5 Deltagande aktörer"]
[null,"Ange vilka aktörer som ska vara med och öva och om de är vidtalade."]
[]
[null,"Aktör som ansvarar för övningen"]
[]
[null,"Aktör som deltar i övningen",null,null,null,"Hur/i vilken omfattning ska aktören delta?",null,null,null,"Vidtalad?"]
[null,null,null,null,null,null,null,null,null,"(Välj i listan)"]
[null,null,null,null,null,null,null,null,null,"(Välj i listan)"]
[null,null,null,null,null,null,null,null,null,"(Välj i listan)"]
[null,null,null,null,null,null,null,null,null,"(Välj i listan)"]
[null,null,null,null,null,null,null,null,null,"(Välj i listan)"]
[null,null,null,null,null,null,null,null,null,"(Välj i listan)"]
[null,null,null,null,null,null,null,null,null,"(Välj i listan)"]
[null,null,null,null,null,null,null,null,null,"(Välj i listan)"]
[]
[null,"6.6 Bemanning"]
[null,"Projektledare och utvärderingsledare bör vara bemannad av sökande aktör(er), inte konsulter, i syfte att främja utvecklingen av myndighetens förmågor."]
[]
[null,"Beskriv översiktligt bemanning av de viktigaste projektrollerna. Dessa ska tydligt framgå i budgeten om de finansieras med sökta medel."]
[]
[]
[]
[]
[null,"6.7 Erfarenhetshantering"]
[]
[]
[]
[]
[]
[]
[null,"Hur ska ni ta hand om de erfarenheter, kunskapar, lärdomar som övningen ger? Exempel: ta fram en åtgärdsplan."]

{"sheet":"Exempel verksamhetslogik","index":3,"n_rows":10,"n_cols":8,"rows_kept":10,"cut":false,"hidden":false,"merged":[]}
[]
[]
[]
[null,null,null,null,null,"Effekt på längre sikt"]
[null,"Resurser","Aktiviteter","Prestationer","Effekt, kort sikt","Effekt, medellång sikt","Effekt, lång sikt","Slutmål"]
[null,"(vad behövs för att genomföra projektet)","(vilken verksamhet/vilka uppgifter utförs i projektet)","(vad leder aktiviteterna till dvs vad ska projektet leverera)","(vad väntas prestationerna leda till)","(vad väntas de kortsiktiga effekterna leda till)","(vad väntas effekterna på medellång sikt leda till)","(övergripande, önskat framtida tillstånd)"]
[null,"Projektledare","Möten (referensgrupp)"," En publicerad vägledning","Ökad kunskap hos gruppen som arbetar med vägledningen, erfarenhetsutbyte","Målgrupperna tar fram nya rutiner och beredskapsplaner utifrån vägledningen","Långsiktig och systematiskt hantering av det vägledningen omfattar finns på plats","Samhällets beredskap har stärkts"]
[null,"Projektgrupp","Kunskapsinhämtning","Spridningsaktiviteter (information/utbildning i vägledningen)","Ökad kunskap hos målgrupperna som får stöd i att använda vägledningen","Övningar i de nya rutinerna genomförs"]
[null,"Referensgrupp","Skriva vägledning"]
[null,null,"Utforma information/utbildningar om vägledningen."]

{"sheet":"Om blanketten","index":4,"n_rows":8,"n_cols":9,"rows_kept":8,"cut":false,"hidden":false,"merged":[[2,7,3,7],[2,8,3,8],[6,7,9,7],[6,8,9,8]]}
[null,"Blankettens struktur",null,null,null,null,"Tekniska tips"]
[]
[null,"Del 1 - Projektöversikt","Sammanfattning och beskrivning av nuläget samt önskat läge när projektet är slutfört. Grundläggande info som kontaktuppgifter, tidplan, koppling till behovsgrund.",null,null,null,null,"Gör textrutorna större så att all text blir synlig genom att antingen:\n\na) dra i skiljelinjen mellan två rader för att göra raden tjockare\n\neller\n\nb) högerklicka på en rad i mitten av en textruta för att infoga en likadan rad ovanför den markerade","a)                            b)"]
[null,"Del 2 - Projektets förutsättningar","Motivering varför projektet inte är eget ansvar, vilka aktörer som är målgrupp och hur de ska ta del av projetket och dess resultat. Här redogörs också för koppling till annan verksamhet, omhändertagande av tidigare erfarenheter samt risker och framgångsfaktorer."]
[null,"Del 3 - Projektets resultat","Resultaten utgörs av prestationer och effekter. Här redogörs också för uppföljning med hjälp av indikatorer och framtida implementering samt finansiering.",null,null,null,null,"Förstora sidan genom att zooma in\nAnvänd plus- och minustecknet i nedre högra hörnet i Excel för att zooma in och zooma ut."]
[null,"Del 4 - Projektets genomförande","Här listas den verksamhet som ska genomföras inom ramen för projektet och vilka aktörer som ingår i samverkan.",null,null,null,null,"Gör radbrytning i en textruta\nTryck på alt+enter för att göra en radbrytning"]
[null,"Del 5 - Budget (separat flik)","Redovisning av sökt ersättning.",null,null,null,null,"Infoga fler rader\nLås upp bladet (inget lösenord krävs). Högerklicka sen på ett av radnumren i den del du vill utöka (i vänstermarginalen på blader) och välj \"infoga\". Välj om du vill låsa bladet igen, men lämna då rutan för lösenord blank. Låset finns bara som ett stöd för att undvika att någon formel oavsiktligt ändras.\n\nDet går att skapa fler rader för exempelvis aktiviteter, samverkanspartners eller i någon av budgettabellerna på detta sätt.\n\nViktigt att infoga en hel rad och inte bara en eller några celler, för att inte påverka resten av blanketten."]
[null,"Del 6 - Bilaga Övning (separat flik)","Redovisning av övningsaktiviteter som ingår i projektet. Fylls bara i om projektet innehåller övningar/övningsaktiviteter."]

{"sheet":"MSBs sammanfattning","index":5,"n_rows":48,"n_cols":42,"rows_kept":48,"cut":false,"hidden":true,"merged":[]}
[]
["Myndighet","Kontaktperson mejl","Projekttitel","Sammanfattning av projektet","Antal kalenderår","Sökt 2022","Sökt 2023","Sökt hela perioden","Prioriterat område","Koppling till inriktningen","Indiaktorer","Övning?","Övning intyganden ok?","Deltar MSB?","Om ja, vem?"]
[{"$f":"'Del 1-4, Projektplan'!E26","v":0},{"$f":"'Del 1-4, Projektplan'!E31","v":0},"Utveckling av arbetet med frivilliga försvarsorganisationer ",{"$f":"'Del 1-4, Projektplan'!B59","v":0},{"$f":"'Del 1-4, Projektplan'!G49","v":0},{"$f":"'Del 1-4, Projektplan'!G53","v":0},{"$f":"'Del 1-4, Projektplan'!G54","v":0},{"$f":"'Del 1-4, Projektplan'!$G$55:$I$55","v":0},{"$f":"'Del 1-4, Projektplan'!B77","v":"(Klicka här för att välja i rullistan)"},{"$f":"'Del 1-4, Projektplan'!B93","v":"Hantering av resurser"},{"$f":"'Del 1-4, Projektplan'!B270","v":"Anpassa beskrivning med hjälp av denna text: \nIndikatorer för prestationer:\n- Antal etablerade kontakter med frivilliga försvarsorganisationer\n- Antal genomförda gemensamma planeringsaktiviteter\n- Deltagande i möten i myndighetsnätverk\n- Tecknade avtal med de utbildade frivilliga från frivilliga försvarsorganisationer\n\nIndikatorer för effekter:\n- Myndigheten bedömer att den egna förmågan inom krisberedskapen och civilt försvar har ökat.\n- Tecknade av avsiktsförklaringar om samarbete med berörda frivilliga försvarsorganisationer\n- 2:4-ansökningar om uppdragsmedel för frivilligutbildningar (går till MSB via organisationerna, efter dialog och underskrift av avnämarblankett som intygar behoven).\n- Genomförda utbildningar och övningar\n"},{"$f":"'Del 1-4, Projektplan'!B315","v":"(Välj i rullistan)"},{"$f":"IF(L3=\"Ja\",Koppling!B48,\"\")","v":""},"JA","Gustaf Åhman, Sofie Cederquist",null,null,null,null,null,null,null,null,null,null,null,null,null,null,null,null,null,null,null,null,null,null,null,null,null,null,true]
[]
[]
[]
[]
["Myndighet","Projekt","Kostnad","Var uppstår kostnaden?","Text","ÅR","Styckkostnad","Summa"]
[{"$f":"'Del 1-4, Projektplan'!$E$26","v":0},{"$f":"'Del 1-4, Projektplan'!$B$40","v":"Utveckling av arbetet med frivilliga försvarsorganisationer"},"Lönekostnad",{"$f":"'Del 5, Budget'!B57","v":"Egna myndigheten"},{"$f":"'Del 5, Budget'!C57","v":0},{"$f":"'Del 5, Budget'!D57","v":"Ange år"},{"$f":"'Del 5, Budget'!H57","v":0},{"$f":"'Del 5, Budget'!J57","v":0}]
[{"$f":"'Del 1-4, Projektplan'!$E$26","v":0},{"$f":"'Del 1-4, Projektplan'!$B$40","v":"Utveckling av arbetet med frivilliga försvarsorganisationer"},"Lönekostnad",{"$f":"'Del 5, Budget'!B58","v":"Egna myndigheten"},{"$f":"'Del 5, Budget'!C58","v":0},{"$f":"'Del 5, Budget'!D58","v":"Ange år"},{"$f":"'Del 5, Budget'!H58","v":0},{"$f":"'Del 5, Budget'!J58","v":0}]
[{"$f":"'Del 1-4, Projektplan'!$E$26","v":0},{"$f":"'Del 1-4, Projektplan'!$B$40","v":"Utveckling av arbetet med frivilliga försvarsorganisationer"},"Lönekostnad",{"$f":"'Del 5, Budget'!B59","v":"Egna myndigheten"},{"$f":"'Del 5, Budget'!C59","v":0},{"$f":"'Del 5, Budget'!D59","v":"Ange år"},{"$f":"'Del 5, Budget'!H59","v":0},{"$f":"'Del 5, Budget'!J59","v":0}]
[{"$f":"'Del 1-4, Projektplan'!$E$26","v":0},{"$f":"'Del 1-4, Projektplan'!$B$40","v":"Utveckling av arbetet med frivilliga försvarsorganisationer"},"Lönekostnad",{"$f":"'Del 5, Budget'!B60","v":"Egna myndigheten"},{"$f":"'Del 5, Budget'!C60","v":0},{"$f":"'Del 5, Budget'!D60","v":"Ange år"},{"$f":"'Del 5, Budget'!H60","v":0},{"$f":"'Del 5, Budget'!J60","v":0}]
[{"$f":"'Del 1-4, Projektplan'!$E$26","v":0},{"$f":"'Del 1-4, Projektplan'!$B$40","v":"Utveckling av arbetet med frivilliga försvarsorganisationer"},"Lönekostnad",{"$f":"'Del 5, Budget'!B61","v":"Egna myndigheten"},{"$f":"'Del 5, Budget'!C61","v":0},{"$f":"'Del 5, Budget'!D61","v":"Ange år"},{"$f":"'Del 5, Budget'!H61","v":0},{"$f":"'Del 5, Budget'!J61","v":0}]
[{"$f":"'Del 1-4, Projektplan'!$E$26","v":0},{"$f":"'Del 1-4, Projektplan'!$B$40","v":"Utveckling av arbetet med frivilliga försvarsorganisationer"},"Lönekostnad",{"$f":"'Del 5, Budget'!B62","v":"Egna myndigheten"},{"$f":"'Del 5, Budget'!C62","v":0},{"$f":"'Del 5, Budget'!D62","v":"Ange år"},{"$f":"'Del 5, Budget'!H62","v":0},{"$f":"'Del 5, Budget'!J62","v":0}]
[{"$f":"'Del 1-4, Projektplan'!$E$26","v":0},{"$f":"'Del 1-4, Projektplan'!$B$40","v":"Utveckling av arbetet med frivilliga försvarsorganisationer"},"Lönekostnad",{"$f":"'Del 5, Budget'!B63","v":"Egna myndigheten"},{"$f":"'Del 5, Budget'!C63","v":0},{"$f":"'Del 5, Budget'!D63","v":"Ange år"},{"$f":"'Del 5, Budget'!H63","v":0},{"$f":"'Del 5, Budget'!J63","v":0}]
[{"$f":"'Del 1-4, Projektplan'!$E$26","v":0},{"$f":"'Del 1-4, Projektplan'!$B$40","v":"Utveckling av arbetet med frivilliga försvarsorganisationer"},"Lönekostnad",{"$f":"'Del 5, Budget'!B64","v":"Egna myndigheten"},{"$f":"'Del 5, Budget'!C64","v":0},{"$f":"'Del 5, Budget'!D64","v":"Ange år"},{"$f":"'Del 5, Budget'!H64","v":0},{"$f":"'Del 5, Budget'!J64","v":0}]
[{"$f":"'Del 1-4, Projektplan'!$E$26","v":0},{"$f":"'Del 1-4, Projektplan'!$B$40","v":"Utveckling av arbetet med frivilliga försvarsorganisationer"},"Lönekostnad",{"$f":"'Del 5, Budget'!B65","v":"Egna myndigheten"},{"$f":"'Del 5, Budget'!C65","v":0},{"$f":"'Del 5, Budget'!D65","v":"Ange år"},{"$f":"'Del 5, Budget'!H65","v":0},{"$f":"'Del 5, Budget'!J65","v":0}]
[{"$f":"'Del 1-4, Projektplan'!$E$26","v":0},{"$f":"'Del 1-4, Projektplan'!$B$40","v":"Utveckling av arbetet med frivilliga försvarsorganisationer"},"Lönekostnad",{"$f":"'Del 5, Budget'!B66","v":"Egna myndigheten"},{"$f":"'Del 5, Budget'!C66","v":0},{"$f":"'Del 5, Budget'!D66","v":"Ange år"},{"$f":"'Del 5, Budget'!H66","v":0},{"$f":"'Del 5, Budget'!J66","v":0}]
[{"$f":"'Del 1-4, Projektplan'!$E$26","v":0},{"$f":"'Del 1-4, Projektplan'!$B$40","v":"Utveckling av arbetet med frivilliga försvarsorganisationer"},"Extern tjänst",{"$f":"'Del 5, Budget'!B71","v":"Egna myndigheten"},{"$f":"'Del 5, Budget'!C71","v":0},{"$f":"'Del 5, Budget'!D71","v":"Ange år"},{"$f":"'Del 5, Budget'!E71","v":0},{"$f":"'Del 5, Budget'!F71","v":0}]
[{"$f":"'Del 1-4, Projektplan'!$E$26","v":0},{"$f":"'Del 1-4, Projektplan'!$B$40","v":"Utveckling av arbetet med frivilliga försvarsorganisationer"},"Extern tjänst",{"$f":"'Del 5, Budget'!B72","v":"Egna myndigheten"},{"$f":"'Del 5, Budget'!C72","v":0},{"$f":"'Del 5, Budget'!D72","v":"Ange år"},{"$f":"'Del 5, Budget'!E72","v":0},{"$f":"'Del 5, Budget'!F72","v":0}]
[{"$f":"'Del 1-4, Projektplan'!$E$26","v":0},{"$f":"'Del 1-4, Projektplan'!$B$40","v":"Utveckling av arbetet med frivilliga försvarsorganisationer"},"Extern tjänst",{"$f":"'Del 5, Budget'!B73","v":"Egna myndigheten"},{"$f":"'Del 5, Budget'!C73","v":0},{"$f":"'Del 5, Budget'!D73","v":"Ange år"},{"$f":"'Del 5, Budget'!E73","v":0},{"$f":"'Del 5, Budget'!F73","v":0}]
[{"$f":"'Del 1-4, Projektplan'!$E$26","v":0},{"$f":"'Del 1-4, Projektplan'!$B$40","v":"Utveckling av arbetet med frivilliga försvarsorganisationer"},"Extern tjänst",{"$f":"'Del 5, Budget'!B74","v":"Egna myndigheten"},{"$f":"'Del 5, Budget'!C74","v":0},{"$f":"'Del 5, Budget'!D74","v":"Ange år"},{"$f":"'Del 5, Budget'!E74","v":0},{"$f":"'Del 5, Budget'!F74","v":0}]
[{"$f":"'Del 1-4, Projektplan'!$E$26","v":0},{"$f":"'Del 1-4, Projektplan'!$B$40","v":"Utveckling av arbetet med frivilliga försvarsorganisationer"},"Extern tjänst",{"$f":"'Del 5, Budget'!B75","v":"Egna myndigheten"},{"$f":"'Del 5, Budget'!C75","v":0},{"$f":"'Del 5, Budget'!D75","v":"Ange år"},{"$f":"'Del 5, Budget'!E75","v":0},{"$f":"'Del 5, Budget'!F75","v":0}]
[{"$f":"'Del 1-4, Projektplan'!$E$26","v":0},{"$f":"'Del 1-4, Projektplan'!$B$40","v":"Utveckling av arbetet med frivilliga försvarsorganisationer"},"Extern tjänst",{"$f":"'Del 5, Budget'!B76","v":"Egna myndigheten"},{"$f":"'Del 5, Budget'!C76","v":0},{"$f":"'Del 5, Budget'!D76","v":"Ange år"},{"$f":"'Del 5, Budget'!E76","v":0},{"$f":"'Del 5, Budget'!F76","v":0}]
[{"$f":"'Del 1-4, Projektplan'!$E$26","v":0},{"$f":"'Del 1-4, Projektplan'!$B$40","v":"Utveckling av arbetet med frivilliga försvarsorganisationer"},"Resa och logi",{"$f":"'Del 5, Budget'!B81","v":"Egna myndigheten"},{"$f":"'Del 5, Budget'!C81","v":0},{"$f":"'Del 5, Budget'!D81","v":"Ange år"},{"$f":"'Del 5, Budget'!E81","v":0},{"$f":"'Del 5, Budget'!F81","v":0}]
[{"$f":"'Del 1-4, Projektplan'!$E$26","v":0},{"$f":"'Del 1-4, Projektplan'!$B$40","v":"Utveckling av arbetet med frivilliga försvarsorganisationer"},"Resa och logi",{"$f":"'Del 5, Budget'!B82","v":"Egna myndigheten"},{"$f":"'Del 5, Budget'!C82","v":0},{"$f":"'Del 5, Budget'!D82","v":"Ange år"},{"$f":"'Del 5, Budget'!E82","v":0},{"$f":"'Del 5, Budget'!F82","v":0}]
[{"$f":"'Del 1-4, Projektplan'!$E$26","v":0},{"$f":"'Del 1-4, Projektplan'!$B$40","v":"Utveckling av arbetet med frivilliga försvarsorganisationer"},"Resa och logi",{"$f":"'Del 5, Budget'!B83","v":"Egna myndigheten"},{"$f":"'Del 5, Budget'!C83","v":0},{"$f":"'Del 5, Budget'!D83","v":"Ange år"},{"$f":"'Del 5, Budget'!E83","v":0},{"$f":"'Del 5, Budget'!F83","v":0}]
[{"$f":"'Del 1-4, Projektplan'!$E$26","v":0},{"$f":"'Del 1-4, Projektplan'!$B$40","v":"Utveckling av arbetet med frivilliga försvarsorganisationer"},"Resa och logi",{"$f":"'Del 5, Budget'!B84","v":"Egna myndigheten"},{"$f":"'Del 5, Budget'!C84","v":0},{"$f":"'Del 5, Budget'!D84","v":"Ange år"},{"$f":"'Del 5, Budget'!E84","v":0},{"$f":"'Del 5, Budget'!F84","v":0}]
[{"$f":"'Del 1-4, Projektplan'!$E$26","v":0},{"$f":"'Del 1-4, Projektplan'!$B$40","v":"Utveckling av arbetet med frivilliga försvarsorganisationer"},"Resa och logi",{"$f":"'Del 5, Budget'!B85","v":"Egna myndigheten"},{"$f":"'Del 5, Budget'!C85","v":0},{"$f":"'Del 5, Budget'!D85","v":"Ange år"},{"$f":"'Del 5, Budget'!E85","v":0},{"$f":"'Del 5, Budget'!F85","v":0}]
[{"$f":"'Del 1-4, Projektplan'!$E$26","v":0},{"$f":"'Del 1-4, Projektplan'!$B$40","v":"Utveckling av arbetet med frivilliga försvarsorganisationer"},"Resa och logi",{"$f":"'Del 5, Budget'!B86","v":"Egna myndigheten"},{"$f":"'Del 5, Budget'!C86","v":0},{"$f":"'Del 5, Budget'!D86","v":"Ange år"},{"$f":"'Del 5, Budget'!E86","v":0},{"$f":"'Del 5, Budget'!F86","v":0}]
[{"$f":"'Del 1-4, Projektplan'!$E$26","v":0},{"$f":"'Del 1-4, Projektplan'!$B$40","v":"Utveckling av arbetet med frivilliga försvarsorganisationer"},"Anläggningstillgång",{"$f":"'Del 5, Budget'!B91","v":"Egna myndigheten"},{"$f":"'Del 5, Budget'!C91","v":0},{"$f":"'Del 5, Budget'!D91","v":"Ange år"},{"$f":"'Del 5, Budget'!E91","v":0},{"$f":"'Del 5, Budget'!F91","v":0}]
[{"$f":"'Del 1-4, Projektplan'!$E$26","v":0},{"$f":"'Del 1-4, Projektplan'!$B$40","v":"Utveckling av arbetet med frivilliga försvarsorganisationer"},"Anläggningstillgång",{"$f":"'Del 5, Budget'!B92","v":"Egna myndigheten"},{"$f":"'Del 5, Budget'!C92","v":0},{"$f":"'Del 5, Budget'!D92","v":"Ange år"},{"$f":"'Del 5, Budget'!E92","v":0},{"$f":"'Del 5, Budget'!F92","v":0}]
[{"$f":"'Del 1-4, Projektplan'!$E$26","v":0},{"$f":"'Del 1-4, Projektplan'!$B$40","v":"Utveckling av arbetet med frivilliga försvarsorganisationer"},"Anläggningstillgång",{"$f":"'Del 5, Budget'!B93","v":"Egna myndigheten"},{"$f":"'Del 5, Budget'!C93","v":0},{"$f":"'Del 5, Budget'!D93","v":"Ange år"},{"$f":"'Del 5, Budget'!E93","v":0},{"$f":"'Del 5, Budget'!F93","v":0}]
[{"$f":"'Del 1-4, Projektplan'!$E$26","v":0},{"$f":"'Del 1-4, Projektplan'!$B$40","v":"Utveckling av arbetet med frivilliga försvarsorganisationer"},"Anläggningstillgång",{"$f":"'Del 5, Budget'!B94","v":"Egna myndigheten"},{"$f":"'Del 5, Budget'!C94","v":0},{"$f":"'Del 5, Budget'!D94","v":"Ange år"},{"$f":"'Del 5, Budget'!E94","v":0},{"$f":"'Del 5, Budget'!F94","v":0}]
[{"$f":"'Del 1-4, Projektplan'!$E$26","v":0},{"$f":"'Del 1-4, Projektplan'!$B$40","v":"Utveckling av arbetet med frivilliga försvarsorganisationer"},"Övrig kostnad",{"$f":"'Del 5, Budget'!B99","v":"Egna myndigheten"},{"$f":"'Del 5, Budget'!C99","v":0},{"$f":"'Del 5, Budget'!D99","v":"Ange år"},{"$f":"'Del 5, Budget'!E99","v":0},{"$f":"'Del 5, Budget'!F99","v":0}]
[{"$f":"'Del 1-4, Projektplan'!$E$26","v":0},{"$f":"'Del 1-4, Projektplan'!$B$40","v":"Utveckling av arbetet med frivilliga försvarsorganisationer"},"Övrig kostnad",{"$f":"'Del 5, Budget'!B100","v":"Egna myndigheten"},{"$f":"'Del 5, Budget'!C100","v":0},{"$f":"'Del 5, Budget'!D100","v":"Ange år"},{"$f":"'Del 5, Budget'!E100","v":0},{"$f":"'Del 5, Budget'!F100","v":0}]
[{"$f":"'Del 1-4, Projektplan'!$E$26","v":0},{"$f":"'Del 1-4, Projektplan'!$B$40","v":"Utveckling av arbetet med frivilliga försvarsorganisationer"},"Övrig kostnad",{"$f":"'Del 5, Budget'!B101","v":"Egna myndigheten"},{"$f":"'Del 5, Budget'!C101","v":0},{"$f":"'Del 5, Budget'!D101","v":"Ange år"},{"$f":"'Del 5, Budget'!E101","v":0},{"$f":"'Del 5, Budget'!F101","v":0}]
[{"$f":"'Del 1-4, Projektplan'!$E$26","v":0},{"$f":"'Del 1-4, Projektplan'!$B$40","v":"Utveckling av arbetet med frivilliga försvarsorganisationer"},"Övrig kostnad",{"$f":"'Del 5, Budget'!B102","v":"Egna myndigheten"},{"$f":"'Del 5, Budget'!C102","v":0},{"$f":"'Del 5, Budget'!D102","v":"Ange år"},{"$f":"'Del 5, Budget'!E102","v":0},{"$f":"'Del 5, Budget'!F102","v":0}]
[{"$f":"'Del 1-4, Projektplan'!$E$26","v":0},{"$f":"'Del 1-4, Projektplan'!$B$40","v":"Utveckling av arbetet med frivilliga försvarsorganisationer"},"Övrig kostnad",{"$f":"'Del 5, Budget'!B103","v":"Egna myndigheten"},{"$f":"'Del 5, Budget'!C103","v":0},{"$f":"'Del 5, Budget'!D103","v":"Ange år"},{"$f":"'Del 5, Budget'!E103","v":0},{"$f":"'Del 5, Budget'!F103","v":0}]
[{"$f":"'Del 1-4, Projektplan'!$E$26","v":0},{"$f":"'Del 1-4, Projektplan'!$B$40","v":"Utveckling av arbetet med frivilliga försvarsorganisationer"},"Övrig kostnad",{"$f":"'Del 5, Budget'!B104","v":"Egna myndigheten"},{"$f":"'Del 5, Budget'!C104","v":0},{"$f":"'Del 5, Budget'!D104","v":"Ange år"},{"$f":"'Del 5, Budget'!E104","v":0},{"$f":"'Del 5, Budget'!F104","v":0}]
[{"$f":"'Del 1-4, Projektplan'!$E$26","v":0},{"$f":"'Del 1-4, Projektplan'!$B$40","v":"Utveckling av arbetet med frivilliga försvarsorganisationer"},{"$f":"'Del 5, Budget'!B113","v":"(Välj)"},"övning",{"$f":"'Del 5, Budget'!C113","v":0},{"$f":"'Del 5, Budget'!H113","v":"Ange år"},{"$f":"'Del 5, Budget'!I113","v":0},{"$f":"'Del 5, Budget'!J113","v":0}]
[{"$f":"'Del 1-4, Projektplan'!$E$26","v":0},{"$f":"'Del 1-4, Projektplan'!$B$40","v":"Utveckling av arbetet med frivilliga försvarsorganisationer"},{"$f":"'Del 5, Budget'!B114","v":"(Välj)"},"övning",{"$f":"'Del 5, Budget'!C114","v":0},{"$f":"'Del 5, Budget'!H114","v":"Ange år"},{"$f":"'Del 5, Budget'!I114","v":0},{"$f":"'Del 5, Budget'!J114","v":0}]
[{"$f":"'Del 1-4, Projektplan'!$E$26","v":0},{"$f":"'Del 1-4, Projektplan'!$B$40","v":"Utveckling av arbetet med frivilliga försvarsorganisationer"},{"$f":"'Del 5, Budget'!B115","v":"(Välj)"},"övning",{"$f":"'Del 5, Budget'!C115","v":0},{"$f":"'Del 5, Budget'!H115","v":"Ange år"},{"$f":"'Del 5, Budget'!I115","v":0},{"$f":"'Del 5, Budget'!J115","v":0}]
[{"$f":"'Del 1-4, Projektplan'!$E$26","v":0},{"$f":"'Del 1-4, Projektplan'!$B$40","v":"Utveckling av arbetet med frivilliga försvarsorganisationer"},{"$f":"'Del 5, Budget'!B116","v":"(Välj)"},"övning",{"$f":"'Del 5, Budget'!C116","v":0},{"$f":"'Del 5, Budget'!H116","v":"Ange år"},{"$f":"'Del 5, Budget'!I116","v":0},{"$f":"'Del 5, Budget'!J116","v":0}]
[{"$f":"'Del 1-4, Projektplan'!$E$26","v":0},{"$f":"'Del 1-4, Projektplan'!$B$40","v":"Utveckling av arbetet med frivilliga försvarsorganisationer"},{"$f":"'Del 5, Budget'!B117","v":"(Välj)"},"övning",{"$f":"'Del 5, Budget'!C117","v":0},{"$f":"'Del 5, Budget'!H117","v":"Ange år"},{"$f":"'Del 5, Budget'!I117","v":0},{"$f":"'Del 5, Budget'!J117","v":0}]
[{"$f":"'Del 1-4, Projektplan'!$E$26","v":0},{"$f":"'Del 1-4, Projektplan'!$B$40","v":"Utveckling av arbetet med frivilliga försvarsorganisationer"},{"$f":"'Del 5, Budget'!B118","v":"(Välj)"},"övning",{"$f":"'Del 5, Budget'!C118","v":0},{"$f":"'Del 5, Budget'!H118","v":"Ange år"},{"$f":"'Del 5, Budget'!I118","v":0},{"$f":"'Del 5, Budget'!J118","v":0}]
[{"$f":"'Del 1-4, Projektplan'!$E$26","v":0},{"$f":"'Del 1-4, Projektplan'!$B$40","v":"Utveckling av arbetet med frivilliga försvarsorganisationer"},{"$f":"'Del 5, Budget'!B119","v":"(Välj)"},"övning",{"$f":"'Del 5, Budget'!C119","v":0},{"$f":"'Del 5, Budget'!H119","v":"Ange år"},{"$f":"'Del 5, Budget'!I119","v":0},{"$f":"'Del 5, Budget'!J119","v":0}]
["Summa",null,null,null,null,null,{"$f":"SUBTOTAL(109,Tabell1[Styckkostnad])","v":0},{"$f":"SUBTOTAL(109,Tabell1[Summa])","v":0}]

{"sheet":"Koppling","index":6,"n_rows":48,"n_cols":12,"rows_kept":48,"cut":false,"hidden":true,"merged":[]}
["ÅR SOM ANSÖKAN GÖRS:",2022]
[null,"Ange år"]
["År 1 (projektstart)",{"$f":"B1+1","v":2023}]
["År 2",{"$f":"B1+2","v":2024}]
["År 3",{"$f":"B1+3","v":2025}]
[]
["(Klicka här för att välja i rullistan)",null,"(Klicka här för att välja i rullistan)",null,null,"(Klicka här för att välja i rullistan)",null,null,null,null,1,{"$f":"\"\"","v":""}]
["Elektroniska kommunikationer och post",null,"Samverkan och ledning",null,null,"Förmåga till aktörsgemensam hantering i gråzon och höjd beredskap",null,null,null,null,{"$f":"IF('Del 1-4, Projektplan'!B93=Koppling!C8,2,0)","v":0},"Välj övergripande utvecklingsområde i listan. Om projektet ligger inom ramen för flera områden väljer ni det som passar bäst:"]
["Energiförsörjning",null,"Kommunikation till allmänheten",null,null,"Förmåga att hantera säkerhetsskyddsklassificerade uppgifter",null,null,null,null,{"$f":"IF('Del 1-4, Projektplan'!B93=Koppling!C10,2,0)","v":2},"Hänvisa till numret på den prioriterade åtgärd som det här projektet hör till (exempelvis 1.1 osv). Om projektet passar in under flera åtgärder kan ni hänvisa till samtliga åtgärder."]
["Finansiell beredskap",null,"Hantering av resurser",null,null,"Samhällets informations- och cybersäkerhet",null,null,null,null,{"$f":"IF('Del 1-4, Projektplan'!B93=Koppling!#REF!,2,0)","v":{"$error":"#REF!"}},"Hänvisa i textrutan nedan till det aktuella tillägget"]
["Hälso- och sjukvård och omsorg",null,"Farliga ämnen (CBRNE)",null,null,"Förmåga till säker  och robust kommunikation",null,null,null,null,{"$f":"IF('Del 1-4, Projektplan'!B93=Koppling!#REF!,0,0)","v":{"$error":"#REF!"}},"Fortsätt till del 2.3 i ansökan för att beskriva det behov ni ser av projektet och var det finns dokumenterat."]
["Livsmedel och dricksvatten",null,"Projektet kopplar inte till inriktningen",null,null,"Allmänhetens beredskap inför olyckor, kriser och krig",null,null,null,null,0,"Fortsätt till del 2.3 i ansökan för att beskriva det behov ni ser av projektet och var det finns dokumenterat."]
["Ordning och säkerhet",null,null,null,null,"Förändrad hotbild inom CBRNE",null,null,null,null,{"$f":"SUM(K7:K12)","v":{"$error":"#REF!"}}]
["Skydd av civilbefolkningen",null,null,null,null,null,null,null,null,null,null,{"$f":"IF(B137=\"Prioriterat utvecklingsområde\",\"Välj prioriterat utvecklingsområde i listan. Om projektet ligger inom ramen för flera områden väljer ni det som passar bäst:\",\"Hänvisa till numret på den åtgärd som det här projektet hör till (exempelvis 1.1 osv). Om projektet passar in under flera åtgärder kan ni hänvisa till samtliga åtgärder.\")","v":"Hänvisa till numret på den åtgärd som det här projektet hör till (exempelvis 1.1 osv). Om projektet passar in under flera åtgärder kan ni hänvisa till samtliga åtgärder."}]
["Transporter",null,"Kryssrutor - ingångsvärden"]
["Annat (lämna kommentar)",null,false]
[null,null,false]
[null,null,false]
["Kryssrutor:",null,false]
[false,"Kommuner"]
[false,"Regioner"]
[false,"Länsstyrelser"]
[false,"Näringsliv"]
[true,"Centrala myndigheter"]
[false,"Frivilligorganisationer"]
[false,"Allmänheten"]
[false,"Annat"]
[]
[false,"4.1 Finansieringsprinciper"]
[]
[]
["Övning"]
["Intygande 1",false]
["Intygande 2",false]
["Intygande 3",false]
["Intygande 4",false]
["Fält",false]
["Simulering",false]
["Seminarie",false]
["Funktion",false]
["Ej beslutet",false]
["Annat",false]
["Erfarenhet 1",false]
["Erfarenhet 2",false]
["Erfarenhet 3",false]
[null,{"$f":"COUNTIFS(B43:B45,TRUE)","v":0}]
[null,{"$f":"COUNTIFS(B33:B36,TRUE)","v":0}]
[null,{"$f":"IF(SUM(B46:B47)=7,\"Alla kryssrutor i övning uppfyllda\",\"Saknar kryssrutor i övning\")","v":"Saknar kryssrutor i övning"}]